bitfinex/quotes_SOLUSD_20250422
["timestamp","ask_amount","ask_price","bid_price","bid_amount"]
[1745361387523,15.86322563,147.17,147.12,14.20522563]
[1745361387725,14.20522563,147.17,147.12,14.20522563]
[1745361388216,6.3864,147.19,147.11,35.52522563]
[1745361388217,14.20522563,147.16,147.11,35.52522563]
[1745361388728,14.20522563,147.16,147.11,21.32]
[1745361388918,14.20522563,147.15,147.11,21.32]
[1745361389315,26.0,147.16,147.11,21.32]
[1745361389522,14.20522563,147.12,147.11,21.32]
[1745361389722,26.0,147.16,147.11,21.32]
[1745361389928,14.20522563,147.18,147.13,14.20522563]
[1745361390432,14.20522563,147.18,147.12,18.64964886]
[1745361390622,14.20522563,147.17,147.12,14.20522563]
[1745361390829,14.20522563,147.16,147.11,35.52522563]
[1745361391134,6.3864,147.19,147.11,21.32]
[1745361391135,14.20522563,147.15,147.11,21.32]
[1745361391634,14.20522563,147.16,147.11,35.52522563]
[1745361391843,14.20522563,147.17,147.11,35.52522563]
[1745361392148,14.20522563,147.17,147.12,14.20522563]
[1745361392328,14.20522563,147.17,147.11,35.52522563]
[1745361392636,14.20522563,147.17,147.11,21.32]
[1745361392823,14.20522563,147.16,147.11,35.52522563]
[1745361394038,6.3864,147.19,147.11,35.52522563]
[1745361394238,26.0,147.2,147.11,35.52522563]
[1745361394239,26.0,147.2,147.13,14.20522563]
[1745361394418,14.20522563,147.17,147.12,32.85487449]
[1745361394929,14.20522563,147.18,147.13,14.20522563]
[1745361395439,14.20522563,147.17,147.12,32.85487449]
[1745361395844,14.20522563,147.18,147.13,14.20522563]
[1745361396136,14.20522563,147.17,147.12,32.85487449]
[1745361397444,14.20522563,147.17,147.12,18.64964886]
[1745361397744,14.20522563,147.16,147.12,18.64964886]
[1745361398332,41.86322563,147.21,147.11,21.32]
[1745361398333,14.20522563,147.15,147.11,21.32]
[1745361398733,14.20522563,147.12,147.11,21.32]
[1745361398937,14.20522563,147.13,147.11,21.32]
[1745361399724,26.0,147.16,147.11,21.32]
[1745361400164,14.20522563,147.14,147.11,21.32]
[1745361400647,26.0,147.18,147.11,21.32]
[1745361400841,14.20522563,147.14,147.11,21.32]
[1745361402947,14.20522563,147.13,147.11,21.32]
[1745361403133,14.20522563,147.12,147.11,21.32]
[1745361403448,14.20522563,147.13,147.11,21.32]
[1745361404237,14.20522563,147.14,147.11,21.32]
[1745361404437,14.20522563,147.13,147.11,21.32]
[1745361405236,14.20522563,147.12,147.11,21.32]
[1745361405943,14.20522563,147.12,147.09,0.03]
[1745361406127,14.20522563,147.1,147.09,0.03]
[1745361407035,38.93664076,147.13,147.09,0.03]
[1745361407244,14.20522563,147.1,147.09,0.03]
[1745361409053,32.1397,147.13,147.09,0.03]
[1745361409236,14.20522563,147.1,147.09,0.03]
[1745361409936,14.20522563,147.11,147.09,0.03]
[1745361410260,14.20522563,147.1,147.09,0.03]
[1745361410445,14.20522563,147.11,147.09,0.03]
[1745361410641,6.1397,147.13,147.09,0.03]
[1745361410861,14.20522563,147.11,147.09,0.03]
[1745361411743,14.20522563,147.14,147.09,0.03]
[1745361412065,14.20522563,147.11,147.09,0.03]
[1745361412255,26.0,147.14,147.09,0.03]
[1745361412457,14.20522563,147.11,147.09,0.03]
[1745361415335,40.20522563,147.14,147.09,0.03]
[1745361415336,14.20522563,147.1,147.09,0.03]
[1745361417472,40.20522563,147.14,147.09,0.03]
[1745361417846,14.20522563,147.11,147.09,0.03]
[1745361419883,40.20522563,147.14,147.09,0.03]
[1745361420052,14.20522563,147.11,147.09,0.03]
[1745361420257,26.0,147.14,147.09,0.03]
[1745361420466,14.20522563,147.1,147.09,0.03]
[1745361423881,40.20522563,147.14,147.09,0.03]
[1745361424178,26.0,147.14,147.09,0.03]
[1745361424384,14.20522563,147.13,147.09,0.03]
[1745361424774,26.0,147.14,147.09,0.03]
[1745361424961,14.20522563,147.13,147.09,0.03]
[1745361425275,26.0,147.14,147.09,0.03]
[1745361425276,14.20522563,147.12,147.09,0.03]
[1745361425583,14.20522563,147.11,147.09,0.03]
[1745361425749,26.0,147.14,147.09,0.03]
[1745361426150,1.5055,147.19,147.11,14.20522563]
[1745361426367,14.20522563,147.16,147.11,14.20522563]
[1745361426649,14.20522563,147.15,147.1,14.20522563]
[1745361427074,14.20522563,147.12,147.09,21.29]
[1745361427857,14.20522563,147.13,147.09,21.29]
[1745361428057,14.20522563,147.14,147.09,35.49522563]
[1745361428558,1.5055,147.19,147.12,14.20522563]
[1745361428765,6.5762,147.21,147.14,14.20522563]
[1745361428985,14.20522563,147.19,147.14,14.20522563]
[1745361429482,14.20522563,147.17,147.12,14.20522563]
[1745361429684,6.5762,147.21,147.1,18.64964886]
[1745361429859,6.5762,147.21,147.13,14.20522563]
[1745361429860,14.20522563,147.18,147.13,14.20522563]
[1745361430184,14.20522563,147.18,147.1,18.64964886]
[1745361430368,14.20522563,147.17,147.13,14.20522563]
[1745361430895,14.20522563,147.14,147.09,21.29]
[1745361431065,14.20522563,147.12,147.09,21.29]
[1745361431897,14.20522563,147.11,147.09,21.29]
[1745361432185,14.20522563,147.12,147.09,21.29]
[1745361432700,14.20522563,147.13,147.09,21.29]
[1745361433281,14.20522563,147.1,147.09,21.29]
[1745361433455,14.20522563,147.11,147.09,21.29]
[1745361433987,14.20522563,147.12,147.09,21.29]
[1745361434584,14.20522563,147.15,147.09,35.49522563]
[1745361434764,26.0,147.16,147.11,14.20522563]
[1745361434961,8.0972,147.21,147.13,14.20522563]
[1745361435361,14.20522563,147.19,147.14,14.20522563]
[1745361436583,14.20522563,147.18,147.13,14.20522563]
[1745361437991,14.20522563,147.17,147.12,14.20522563]
[1745361438195,14.20522563,147.16,147.11,34.52107449]
[1745361438377,14.20522563,147.17,147.12,14.20522563]
[1745361439976,14.20522563,147.16,147.11,1.6662]
[1745361440192,14.20522563,147.16,147.1,6.1322]
[1745361440193,14.20522563,147.14,147.09,35.49522563]
[1745361440373,26.0,147.19,147.09,21.29]
[1745361440569,14.20522563,147.13,147.09,21.29]
[1745361440865,6.6377,147.18,147.09,21.29]
[1745361441066,14.20522563,147.13,147.09,21.29]
[1745361441281,14.20522563,147.12,147.09,21.29]
[1745361441592,14.20522563,147.11,147.09,21.29]
[1745361442366,14.20522563,147.14,147.09,21.29]
[1745361442367,14.20522563,147.1,147.09,21.29]
[1745361443901,14.20522563,147.11,147.09,21.29]
[1745361444104,14.20522563,147.12,147.09,21.29]
[1745361444287,14.20522563,147.1,147.09,21.29]
[1745361444896,14.20522563,147.12,147.09,21.29]
[1745361445096,26.0,147.15,147.09,21.29]
[1745361445279,1.521,147.17,147.09,21.29]
[1745361445473,14.20522563,147.11,147.09,21.29]
[1745361445885,14.20522563,147.12,147.09,21.29]
[1745361447095,14.20522563,147.11,147.09,21.29]
[1745361447476,14.20522563,147.1,147.09,21.29]
[1745361448000,14.20522563,147.1,147.09,0.03]
[1745361449672,26.0,147.1,147.09,0.03]
[1745361449887,40.20522563,147.1,147.09,0.03]
[1745361451410,14.20522563,147.1,147.09,0.03]
[1745361451577,40.20522563,147.1,147.09,0.03]
[1745361452289,41.81992563,147.1,147.09,0.03]
[1745361452489,28.41045126,147.07,147.06,0.03]
[1745361453196,54.41045126,147.07,147.03,0.03]
[1745361453397,14.20522563,147.04,147.03,0.03]
[1745361454487,14.20522563,147.05,147.03,0.03]
[1745361454991,14.20522563,147.04,147.03,0.03]
[1745361460006,14.20522563,147.05,147.03,0.03]
[1745361460208,14.20522563,147.04,147.03,0.03]
[1745361460783,14.20522563,147.06,147.03,0.03]
[1745361460984,40.20522563,147.09,147.04,14.20522563]
[1745361461185,14.20522563,147.09,147.04,14.20522563]
[1745361461784,22.61647189,147.14,147.04,14.20522563]
[1745361461996,14.20522563,147.08,147.03,14.23522563]
[1745361462192,14.20522563,147.06,147.03,0.03]
[1745361462694,14.20522563,147.05,147.03,0.03]
[1745361462899,14.20522563,147.06,147.03,0.03]
[1745361464397,14.20522563,147.05,147.03,0.03]
[1745361464908,14.20522563,147.04,147.03,0.03]
[1745361468609,21.00609614,147.04,147.03,0.03]
[1745361469187,47.00609614,147.04,147.03,0.03]
[1745361470708,14.20522563,146.98,146.97,0.03]
[1745361474593,26.0,146.99,146.97,0.03]
[1745361474794,14.20522563,146.98,146.97,0.03]
[1745361477594,6.4224,147.03,146.97,0.03]
[1745361477903,14.20522563,147.0,146.97,0.03]
[1745361478696,14.20522563,146.99,146.97,0.03]
[1745361478909,14.20522563,146.98,146.97,0.03]
[1745361480505,32.4224,147.03,146.97,0.03]
[1745361480826,14.20522563,147.0,146.97,0.03]
[1745361481114,14.20522563,146.99,146.97,0.03]
[1745361481903,26.0,147.02,146.97,0.03]
[1745361482104,14.20522563,146.99,146.97,0.03]
[1745361482304,14.20522563,146.98,146.97,0.03]
[1745361489230,26.0,147.02,146.97,0.03]
[1745361489441,14.20522563,147.0,146.97,0.03]
[1745361489726,14.20522563,146.99,146.97,0.03]
[1745361489908,14.20522563,146.98,146.97,0.03]
[1745361490309,14.20522563,146.99,146.97,0.03]
[1745361491528,14.20522563,146.98,146.97,0.03]
[1745361495036,8.1835,147.05,146.97,14.23522563]
[1745361495220,14.20522563,147.03,146.98,14.20522563]
[1745361495727,14.20522563,147.02,146.97,14.23522563]
[1745361498534,27.6537,147.05,146.97,14.23522563]
[1745361498535,14.20522563,147.03,146.98,14.20522563]
[1745361499030,26.0,147.04,146.97,0.03]
[1745361499216,14.20522563,147.03,146.98,14.20522563]
[1745361499738,14.20522563,147.02,146.97,14.23522563]
[1745361500033,26.0,147.04,146.98,14.20522563]
[1745361500216,14.20522563,147.03,146.98,14.20522563]
[1745361500425,14.20522563,147.01,146.97,0.03]
[1745361500909,14.20522563,147.02,146.97,14.23522563]
[1745361501318,14.20522563,147.01,146.97,0.03]
[1745361501522,14.20522563,147.01,146.98,21.14]
[1745361502819,14.20522563,147.0,146.98,21.14]
[1745361503232,14.20522563,147.01,146.98,21.14]
[1745361503943,26.0,147.04,146.98,21.14]
[1745361504114,14.20522563,147.02,146.98,21.14]
[1745361505017,14.20522563,147.01,146.98,21.14]
[1745361505217,14.20522563,146.99,146.98,21.14]
[1745361505933,14.20522563,146.99,146.97,0.03]
[1745361506137,14.20522563,146.98,146.97,0.03]
[1745361506325,15.81292563,146.98,146.97,0.03]
[1745361507332,14.20522563,146.98,146.97,0.03]
[1745361509135,14.20522563,147.02,146.97,0.03]
[1745361509529,26.0,147.03,146.97,21.09]
[1745361510036,14.20522563,146.99,146.97,21.09]
[1745361510338,14.20522563,147.0,146.97,21.09]
[1745361510723,14.20522563,146.99,146.97,21.09]
[1745361511330,26.0,147.03,146.97,21.09]
[1745361511523,14.20522563,147.0,146.97,21.09]
[1745361512545,14.20522563,147.01,146.97,21.09]
[1745361512762,14.20522563,147.0,146.97,21.09]
[1745361513130,14.20522563,146.99,146.97,21.09]
[1745361513331,14.20522563,147.0,146.97,21.09]
[1745361515124,14.20522563,146.98,146.97,21.09]
[1745361516529,32.80179855,147.02,146.97,21.09]
[1745361516733,14.20522563,146.98,146.97,21.09]
[1745361517848,40.20522563,146.98,146.97,0.03]
[1745361518948,14.20522563,146.98,146.97,0.03]
[1745361519563,40.20522563,146.98,146.97,0.03]
[1745361520033,47.25812124,146.98,146.93,1.041723]
[1745361520236,26.0,146.92,146.91,0.03]
[1745361520450,40.20522563,146.92,146.91,0.03]
[1745361520648,14.20522563,146.88,146.86,21.06]
[1745361521037,14.20522563,146.87,146.86,21.06]
[1745361521940,26.0,146.9,146.86,21.06]
[1745361522143,14.20522563,146.88,146.86,21.06]
[1745361522457,14.20522563,146.89,146.86,21.06]
[1745361522955,26.0,146.92,146.86,21.06]
[1745361523156,14.20522563,146.88,146.86,21.06]
[1745361523354,14.20522563,146.87,146.86,21.06]
[1745361523554,14.20522563,146.87,146.82,11.59977329]
[1745361523772,14.20522563,146.83,146.82,11.59977329]
[1745361524057,14.20522563,146.84,146.82,11.59977329]
[1745361524257,14.20522563,146.83,146.82,11.59977329]
[1745361527461,32.85487449,146.93,146.82,11.59977329]
[1745361527762,100.01231692,146.96,146.86,14.20522563]
[1745361527763,7.7023,146.95,146.86,14.20522563]
[1745361527971,14.20522563,146.91,146.86,35.28522563]
[1745361528465,14.20522563,146.9,146.86,21.08]
[1745361528669,14.20522563,146.91,146.86,35.28522563]
[1745361529275,22.8179138,146.9,146.86,21.08]
[1745361529447,22.8179138,146.91,146.86,21.08]
[1745361529841,22.8179138,146.91,146.86,43.8979138]
[1745361530244,22.8179138,146.92,146.86,43.8979138]
[1745361530471,7.7023,146.95,146.87,22.8179138]
[1745361530649,22.8179138,146.93,146.88,22.8179138]
[1745361531057,22.8179138,146.92,146.87,22.8179138]
[1745361531775,22.8179138,146.94,146.89,22.8179138]
[1745361532370,26.0,146.98,146.9,22.8179138]
[1745361532670,22.8179138,146.96,146.91,22.8179138]
[1745361533475,22.8179138,146.96,146.9,22.8179138]
[1745361534150,22.8179138,146.98,146.93,22.8179138]
[1745361534349,22.8179138,146.98,146.93,21.08]
[1745361534568,22.8179138,146.96,146.93,21.08]
[1745361534772,22.8179138,146.95,146.93,21.08]
[1745361534958,22.8179138,146.94,146.93,21.08]
[1745361535654,22.8179138,146.94,146.84,14.6014873]
[1745361535655,26.0,146.98,146.88,21.0]
[1745361535968,22.8179138,146.94,146.89,22.8179138]
[1745361536172,26.0,146.97,146.9,22.8179138]
[1745361536471,22.8179138,146.95,146.9,22.8179138]
[1745361537074,22.8179138,146.95,146.88,21.0]
[1745361537075,22.8179138,146.94,146.89,22.8179138]
[1745361537962,22.8179138,146.95,146.9,22.8179138]
[1745361538160,22.8179138,146.93,146.88,21.0]
[1745361538467,22.8179138,146.93,146.88,43.8179138]
[1745361539851,22.8179138,146.93,146.88,21.0]
[1745361540047,3.46842324,146.99,146.9,22.8179138]
[1745361540375,29.68401496,147.0,146.88,21.0]
[1745361540376,22.8179138,146.96,146.91,22.8179138]
[1745361540548,22.8179138,146.93,146.88,43.8179138]
[1745361540755,22.8179138,146.92,146.88,21.0]
[1745361542067,22.8179138,146.91,146.88,21.0]
[1745361543166,22.8179138,146.92,146.88,21.0]
[1745361543969,26.0,146.97,146.9,22.8179138]
[1745361544281,22.8179138,146.95,146.9,22.8179138]
[1745361544578,22.8179138,146.94,146.89,22.8179138]
[1745361544955,22.8179138,146.93,146.88,43.8179138]
[1745361545296,22.8179138,146.93,146.88,21.0]
[1745361545484,22.8179138,146.92,146.88,21.0]
[1745361545779,22.8179138,146.91,146.87,21.0]
[1745361546078,26.0,146.97,146.87,21.0]
[1745361546079,22.8179138,146.9,146.87,21.0]
[1745361546285,22.8179138,146.88,146.87,21.0]
[1745361546486,22.8179138,146.88,146.82,32.59977329]
[1745361546681,22.8179138,146.85,146.82,32.59977329]
[1745361547388,22.8179138,146.86,146.82,32.59977329]
[1745361548581,22.8179138,146.87,146.82,32.59977329]
[1745361550167,26.0,146.9,146.82,32.59977329]
[1745361550374,22.8179138,146.86,146.82,32.59977329]
[1745361551682,22.8179138,146.85,146.82,32.59977329]
[1745361551891,1.5813,146.88,146.82,32.59977329]
[1745361551892,22.8179138,146.83,146.82,32.59977329]
[1745361552812,8.39001478,146.88,146.82,32.59977329]
[1745361552967,22.8179138,146.86,146.82,32.59977329]
[1745361553163,22.8179138,146.85,146.82,32.59977329]
[1745361553662,1.5813,146.88,146.82,32.59977329]
[1745361553663,22.8179138,146.86,146.82,32.59977329]
[1745361554285,1.5813,146.88,146.82,32.59977329]
[1745361554286,22.8179138,146.85,146.82,32.59977329]
[1745361555370,14.27318861,146.84,146.82,32.59977329]
[1745361555568,14.27318861,146.85,146.82,32.59977329]
[1745361555769,14.27318861,146.86,146.82,32.59977329]
[1745361556175,14.27318861,146.85,146.82,32.59977329]
[1745361557079,14.27318861,146.84,146.82,32.59977329]
[1745361558105,6.6652,146.87,146.82,32.59977329]
[1745361558699,14.27318861,146.85,146.82,32.59977329]
[1745361561005,14.27318861,146.83,146.82,32.59977329]
[1745361561210,14.27318861,146.83,146.82,11.59977329]
[1745361561597,39.47421522,146.87,146.82,11.59977329]
[1745361561797,14.27318861,146.84,146.82,11.59977329]
[1745361562105,14.27318861,146.83,146.82,11.59977329]
[1745361564521,39.47421522,146.87,146.82,11.59977329]
[1745361564716,14.27318861,146.83,146.82,11.59977329]
[1745361565409,14.27318861,146.84,146.82,11.59977329]
[1745361565805,32.6652,146.87,146.82,11.59977329]
[1745361565806,14.27318861,146.83,146.82,11.59977329]
[1745361567421,14.27318861,146.86,146.82,11.59977329]
[1745361567624,14.27318861,146.84,146.82,11.59977329]
[1745361568313,14.27318861,146.83,146.82,11.59977329]
[1745361568907,14.27318861,146.84,146.82,11.59977329]
[1745361569324,14.27318861,146.83,146.82,11.59977329]
[1745361570019,14.27318861,146.84,146.82,11.59977329]
[1745361570345,40.27318861,146.84,146.82,11.59977329]
[1745361571014,14.27318861,146.85,146.82,11.59977329]
[1745361571329,14.27318861,146.86,146.82,11.59977329]
[1745361571505,1.5813,146.88,146.82,11.59977329]
[1745361571506,14.27318861,146.85,146.82,11.59977329]
[1745361572729,14.27318861,146.84,146.82,11.59977329]
[1745361573025,40.27318861,146.86,146.82,11.59977329]
[1745361573406,14.27318861,146.85,146.82,11.59977329]
[1745361573936,14.27318861,146.84,146.82,11.59977329]
[1745361574635,14.27318861,146.85,146.82,11.59977329]
[1745361575132,26.0,146.87,146.82,11.59977329]
[1745361575307,14.27318861,146.85,146.82,11.59977329]
[1745361575510,26.0,146.86,146.82,11.59977329]
[1745361575834,14.27318861,146.86,146.82,11.59977329]
[1745361576005,40.27318861,146.87,146.82,11.59977329]
[1745361577017,14.27318861,146.85,146.82,11.59977329]
[1745361577338,26.0,146.87,146.82,11.59977329]
[1745361577339,14.27318861,146.84,146.82,11.59977329]
[1745361577512,14.27318861,146.83,146.82,11.59977329]
[1745361577935,14.27318861,146.84,146.82,11.59977329]
[1745361578134,14.27318861,146.83,146.82,11.59977329]
[1745361581116,26.0,146.85,146.82,11.59977329]
[1745361581313,6.80809096,146.89,146.82,11.59977329]
[1745361581532,14.27318861,146.83,146.82,11.59977329]
[1745361582031,14.27318861,146.84,146.82,11.59977329]
[1745361582644,14.27318861,146.83,146.82,11.59977329]
[1745361587729,48.69968589,146.83,146.82,11.59977329]
[1745361589741,26.0,146.8,146.76,0.03]
[1745361589936,14.27318861,146.77,146.76,0.03]
[1745361596265,26.0,146.79,146.76,0.03]
[1745361596448,14.27318861,146.77,146.76,0.03]
[1745361598167,14.27318861,146.78,146.76,0.03]
[1745361598342,14.27318861,146.77,146.76,0.03]
[1745361600148,29.46235301,146.81,146.76,0.03]
[1745361600149,26.0,146.8,146.76,0.03]
[1745361600363,6.3871,146.85,146.76,14.30318861]
[1745361600679,14.27318861,146.8,146.76,0.03]
[1745361601668,14.27318861,146.77,146.76,0.03]
[1745361602451,9.84840554,146.85,146.76,14.30318861]
[1745361602655,14.27318861,146.83,146.78,14.27318861]
[1745361602866,14.27318861,146.84,146.79,14.27318861]
[1745361603172,14.27318861,146.83,146.78,14.27318861]
[1745361604253,14.27318861,146.84,146.79,20.88]
[1745361605474,14.27318861,146.84,146.79,35.15318861]
[1745361605677,26.0,146.86,146.79,35.15318861]
[1745361605969,1.5729,146.9,146.82,14.27318861]
[1745361606171,14.27318861,146.88,146.83,14.27318861]
[1745361606560,20.53668861,146.93,146.83,14.27318861]
[1745361606742,20.53668861,146.93,146.84,14.27318861]
[1745361606950,14.27318861,146.89,146.84,14.27318861]
[1745361607382,26.0,146.9,146.84,14.27318861]
[1745361607555,14.27318861,146.9,146.85,14.27318861]
[1745361608077,14.27318861,146.9,146.82,31.99787484]
[1745361608078,14.27318861,146.91,146.86,35.15318861]
[1745361608263,13.13072026,146.97,146.86,35.15318861]
[1745361608264,6.3265,146.97,146.88,14.27318861]
[1745361608472,14.27318861,146.93,146.88,14.27318861]
[1745361608769,14.27318861,146.95,146.89,14.27318861]
[1745361609269,0.063,146.97,146.9,14.27318861]
[1745361609474,26.063,146.97,146.9,14.27318861]
[1745361609667,14.27318861,146.96,146.91,14.27318861]
[1745361610252,14.27318861,146.95,146.9,14.27318861]
[1745361611459,14.27318861,146.96,146.91,14.27318861]
[1745361611947,14.27318861,146.95,146.9,14.27318861]
[1745361612456,14.27318861,146.93,146.88,6.5372]
[1745361612771,14.27318861,146.93,146.88,20.81038861]
[1745361612974,14.27318861,146.94,146.89,14.27318861]
[1745361613875,14.27318861,146.95,146.9,14.27318861]
[1745361614175,14.27318861,146.96,146.9,14.27318861]
[1745361614479,14.27318861,146.95,146.9,14.27318861]
[1745361614778,14.27318861,146.94,146.88,6.5372]
[1745361614963,14.27318861,146.92,146.86,41.16594886]
[1745361615163,6.86716503,146.97,146.87,14.27318861]
[1745361615361,14.27318861,146.92,146.87,14.27318861]
[1745361615772,14.27318861,146.89,146.85,82.0]
[1745361615984,14.27318861,146.88,146.85,20.86]
[1745361616173,14.27318861,146.89,146.85,20.86]
[1745361617577,14.27318861,146.91,146.86,14.27318861]
[1745361617774,14.27318861,146.92,146.86,14.27318861]
[1745361618078,14.27318861,146.92,146.87,14.27318861]
[1745361618383,14.27318861,146.92,146.86,14.27318861]
[1745361618772,14.27318861,146.91,146.85,20.86]
[1745361619085,14.27318861,146.9,146.85,35.13318861]
[1745361619303,14.27318861,146.89,146.85,20.86]
[1745361619793,6.8055753,146.94,146.86,14.27318861]
[1745361619977,14.27318861,146.91,146.86,14.27318861]
[1745361620679,14.27318861,146.92,146.87,14.27318861]
[1745361621892,14.27318861,146.93,146.88,14.27318861]
[1745361625162,14.27318861,146.94,146.89,14.27318861]
[1745361625568,14.27318861,146.95,146.9,14.27318861]
[1745361626464,0.063,146.97,146.9,14.27318861]
[1745361626671,0.063,146.97,146.89,18.64964886]
[1745361626984,0.063,146.97,146.91,14.27318861]
[1745361626985,14.27318861,146.96,146.91,14.27318861]
[1745361627163,14.27318861,146.95,146.9,14.27318861]
[1745361627593,14.27318861,146.94,146.88,1.5962]
[1745361627802,14.27318861,146.89,146.85,20.86]
[1745361628474,14.27318861,146.9,146.85,35.13318861]
[1745361629785,14.27318861,146.89,146.85,20.86]
[1745361629981,14.27318861,146.86,146.85,20.86]
[1745361630663,14.27318861,146.86,146.8,35.05318861]
[1745361631270,14.27318861,146.85,146.8,35.05318861]
[1745361633496,14.27318861,146.84,146.8,20.78]
[1745361633674,14.27318861,146.83,146.8,20.78]
[1745361633874,14.27318861,146.86,146.8,35.05318861]
[1745361634074,6.80688857,146.91,146.82,14.27318861]
[1745361634281,14.27318861,146.87,146.82,14.27318861]
[1745361634493,14.27318861,146.87,146.81,14.27318861]
[1745361635496,14.27318861,146.87,146.82,14.27318861]
[1745361635997,1.6545,146.92,146.82,14.27318861]
[1745361635998,8.46105755,146.92,146.82,14.27318861]
[1745361636296,14.27318861,146.88,146.82,14.27318861]
[1745361636601,14.27318861,146.87,146.82,14.27318861]
[1745361637276,14.27318861,146.87,146.81,18.64964886]
[1745361637474,14.27318861,146.85,146.8,35.05318861]
[1745361637786,14.27318861,146.86,146.81,14.27318861]
[1745361637982,14.27318861,146.87,146.82,14.27318861]
[1745361638188,14.27318861,146.86,146.81,14.27318861]
[1745361639095,32.80741014,146.9,146.81,14.27318861]
[1745361639293,14.27318861,146.86,146.81,14.27318861]
[1745361639784,14.27318861,146.86,146.8,35.05318861]
[1745361641782,14.27318861,146.85,146.8,35.05318861]
[1745361643100,14.27318861,146.84,146.8,20.78]
[1745361643779,6.80839455,146.88,146.8,20.78]
[1745361643971,14.27318861,146.85,146.8,35.05318861]
[1745361644175,26.0,146.9,146.81,14.27318861]
[1745361644474,14.27318861,146.86,146.81,14.27318861]
[1745361644886,14.27318861,146.85,146.8,35.05318861]
[1745361645082,14.27318861,146.85,146.8,20.78]
[1745361645290,14.27318861,146.86,146.81,14.27318861]
[1745361646100,14.27318861,146.86,146.8,35.05318861]
[1745361646306,14.27318861,146.86,146.81,14.27318861]
[1745361648020,14.27318861,146.86,146.8,35.05318861]
[1745361648316,14.27318861,146.87,146.82,14.27318861]
[1745361649014,26.0,146.9,146.81,14.27318861]
[1745361649015,14.27318861,146.86,146.81,14.27318861]
[1745361649214,14.27318861,146.84,146.8,20.78]
[1745361649383,9.13484459,146.84,146.8,20.78]
[1745361649899,9.13484459,146.85,146.8,29.91484459]
[1745361650102,9.13484459,146.86,146.81,9.13484459]
[1745361650599,9.13484459,146.86,146.8,29.91484459]
[1745361652003,26.0,146.89,146.8,29.91484459]
[1745361652208,26.0,146.88,146.81,9.13484459]
[1745361652403,9.13484459,146.86,146.8,20.78]
[1745361652606,9.13484459,146.86,146.81,9.13484459]
[1745361653314,26.0,146.88,146.81,9.13484459]
[1745361653613,9.13484459,146.86,146.81,9.13484459]
[1745361654797,9.13484459,146.85,146.8,20.78]
[1745361654998,9.13484459,146.84,146.8,20.78]
[1745361655307,9.13484459,146.85,146.8,29.91484459]
[1745361656218,32.80745647,146.9,146.8,29.91484459]
[1745361656400,9.13484459,146.85,146.8,29.91484459]
[1745361656793,9.13484459,146.86,146.8,29.91484459]
[1745361657000,32.80745647,146.9,146.8,29.91484459]
[1745361657208,9.13484459,146.86,146.8,29.91484459]
[1745361657811,9.13484459,146.86,146.8,20.78]
[1745361658013,9.13484459,146.85,146.8,20.78]
[1745361658514,9.13484459,146.85,146.8,29.91484459]
[1745361659122,9.13484459,146.85,146.8,20.78]
[1745361660002,9.13484459,146.85,146.8,29.91484459]
[1745361660317,9.13484459,146.85,146.8,20.78]
[1745361660719,9.13484459,146.85,146.8,29.91484459]
[1745361660919,26.0,146.9,146.82,9.13484459]
[1745361661112,9.13484459,146.87,146.82,9.13484459]
[1745361661311,9.13484459,146.87,146.81,9.13484459]
[1745361662616,9.13484459,146.86,146.81,9.13484459]
[1745361662920,9.13484459,146.87,146.82,9.13484459]
[1745361664323,9.13484459,146.86,146.81,9.13484459]
[1745361665203,9.13484459,146.86,146.8,20.78]
[1745361665401,9.13484459,146.86,146.81,9.13484459]
[1745361665609,26.0,146.9,146.81,9.13484459]
[1745361665822,9.13484459,146.86,146.81,9.13484459]
[1745361666708,26.0,146.9,146.82,9.13484459]
[1745361666709,9.13484459,146.87,146.82,9.13484459]
[1745361667509,9.13484459,146.87,146.83,20.7]
[1745361667911,9.13484459,146.88,146.83,20.7]
[1745361668403,9.13484459,146.87,146.83,20.7]
[1745361669005,9.13484459,146.88,146.83,29.83484459]
[1745361669629,9.13484459,146.88,146.83,20.7]
[1745361670935,9.13484459,146.87,146.83,20.7]
[1745361671307,9.13484459,146.86,146.83,20.7]
[1745361671533,9.13484459,146.85,146.83,20.7]